bitfinex/quotes_SOLUSD_20250228
["timestamp","ask_amount","ask_price","bid_price","bid_amount"]
[1740722409826,0.03,128.58,128.53,0.14216157]
[1740722410018,0.03,128.59,128.56,1.6344]
[1740722410227,0.03,128.59,128.56,21.6344]
[1740722410727,0.03,128.59,128.56,1.6344]
[1740722411630,0.03,128.59,128.52,0.063]
[1740722412035,18.64964886,128.57,128.52,0.063]
[1740722412216,82.3,128.58,128.52,0.063]
[1740722412825,0.03,128.59,128.52,0.063]
[1740722412826,0.03,128.59,128.53,0.14216157]
[1740722413431,0.03,128.59,128.53,18.79181043]
[1740722413637,0.03,128.59,128.52,30.923]
[1740722414343,0.03,128.59,128.52,10.923]
[1740722414733,82.3,128.58,128.52,10.923]
[1740722415045,82.3,128.57,128.52,0.063]
[1740722415242,100.94964886,128.56,128.52,0.063]
[1740722415448,82.3,128.55,128.52,0.063]
[1740722415650,18.64964886,128.53,128.52,0.063]
[1740722415843,18.79181043,128.53,128.52,0.063]
[1740722416049,0.14216157,128.52,128.44,6.1689]
[1740722416235,18.64964886,128.53,128.44,6.1689]
[1740722416427,7.7796,128.54,128.44,6.1689]
[1740722416628,20.0,128.51,128.44,6.1689]
[1740722416951,18.64964886,128.46,128.39,7.7111]
[1740722417254,0.14216157,128.45,128.39,0.063]
[1740722417440,18.64964886,128.44,128.39,0.063]
[1740722417647,7.7863,128.43,128.39,0.063]
[1740722418550,7.7839,128.47,128.39,0.063]
[1740722418745,131.22,128.48,128.39,0.063]
[1740722419058,0.14216157,128.47,128.39,0.063]
[1740722419260,131.22,128.48,128.39,0.063]
[1740722419746,138.9996,128.55,128.44,6.1877]
[1740722419961,82.8,128.54,128.44,6.1877]
[1740722420456,18.64964886,128.53,128.44,6.1877]
[1740722420633,20.0,128.5,128.44,6.1877]
[1740722420827,82.8,128.49,128.44,6.1877]
[1740722421551,158.4472,128.55,128.44,6.1877]
[1740722421852,82.8,128.54,128.44,6.1877]
[1740722422351,20.0,128.5,128.44,6.1877]
[1740722422557,101.44964886,128.49,128.44,6.1877]
[1740722422735,82.8,128.48,128.44,6.1877]
[1740722423125,0.03,128.52,128.44,6.1877]
[1740722423338,0.03,128.52,128.45,10.84]
[1740722424758,82.8,128.51,128.45,10.84]
[1740722424950,82.8,128.51,128.44,6.1877]
[1740722425150,101.59181043,128.5,128.44,6.1877]
[1740722425360,101.44964886,128.5,128.44,6.1877]
[1740722425556,0.03,128.52,128.44,6.1877]
[1740722425935,7.8108,128.52,128.44,6.1877]
[1740722426159,101.44964886,128.51,128.44,6.1877]
[1740722426653,0.14216157,128.5,128.44,6.1877]
[1740722426832,101.44964886,128.51,128.44,6.1877]
[1740722427036,0.14216157,128.5,128.44,6.1877]
[1740722427261,18.64964886,128.48,128.44,6.1877]
[1740722427839,82.8,128.49,128.44,6.1877]
[1740722428060,18.64964886,128.47,128.43,1.5504]
[1740722428233,82.8,128.46,128.39,6.6096]
[1740722428739,18.64964886,128.44,128.39,6.6096]
[1740722429060,18.64964886,128.42,128.39,0.063]
[1740722429858,82.8,128.43,128.39,0.063]
[1740722430065,82.8,128.47,128.39,0.063]
[1740722430268,82.8,128.46,128.39,0.063]
[1740722430567,82.8,128.5,128.41,20.0]
[1740722430949,82.8,128.5,128.42,6.5514]
[1740722433448,90.5821,128.5,128.42,6.5514]
[1740722433748,18.64964886,128.49,128.42,6.5514]
[1740722433949,82.8,128.48,128.42,6.5514]
[1740722434763,18.64964886,128.47,128.42,6.5514]
[1740722435063,18.64964886,128.45,128.39,0.063]
[1740722435255,7.7869,128.42,128.41,0.063]
[1740722435462,90.5869,128.42,128.41,0.063]
[1740722435661,26.43654886,128.42,128.41,0.063]
[1740722435866,7.7869,128.42,128.41,0.063]
[1740722436064,7.92906157,128.42,128.41,0.063]
[1740722436449,0.14216157,128.4,128.32,6.3437]
[1740722437367,0.14216157,128.37,128.32,6.3437]
[1740722437753,0.14216157,128.37,128.27,16.8745]
[1740722438562,0.14216157,128.37,128.27,6.1145]
[1740722439247,0.14216157,128.34,128.27,6.1145]
[1740722439462,18.64964886,128.35,128.27,6.1145]
[1740722439463,18.64964886,128.35,128.27,13.9104]
[1740722439668,0.14216157,128.36,128.28,0.063]
[1740722439867,0.14216157,128.38,128.28,0.063]
[1740722440151,18.79181043,128.33,128.28,0.063]
[1740722440351,0.14216157,128.3,128.28,0.063]
[1740722440655,101.44964886,128.29,128.28,0.063]
[1740722440850,82.8,128.29,128.28,0.063]
[1740722441163,82.8,128.31,128.28,0.063]
[1740722442354,18.64964886,128.3,128.28,0.063]
[1740722442675,101.44964886,128.3,128.28,0.063]
[1740722442859,82.8,128.29,128.28,0.063]
[1740722443449,82.8,128.31,128.28,0.063]
[1740722443655,131.32,128.32,128.28,0.063]
[1740722443954,131.32,128.32,128.28,20.063]
[1740722444155,90.5909,128.36,128.28,20.063]
[1740722444381,82.8,128.35,128.28,20.063]
[1740722444564,18.64964886,128.34,128.28,0.063]
[1740722445072,18.64964886,128.32,128.28,0.063]
[1740722445269,82.8,128.31,128.28,0.063]
[1740722446174,101.44964886,128.3,128.28,0.063]
[1740722446875,101.44964886,128.29,128.28,0.063]
[1740722447060,18.64964886,128.29,128.28,0.063]
[1740722447566,18.64964886,128.27,128.26,0.063]
[1740722448166,0.14216157,128.26,128.23,0.063]
[1740722448764,18.64964886,128.27,128.23,0.063]
[1740722449176,0.14216157,128.26,128.23,0.063]
[1740722449479,18.64964886,128.27,128.23,0.063]
[1740722449480,18.79181043,128.24,128.23,0.063]
[1740722450565,18.64964886,128.24,128.23,0.063]
[1740722450763,131.42,128.29,128.23,0.063]
[1740722451584,82.8,128.28,128.23,0.063]
[1740722452870,82.8,128.35,128.27,20.0]
[1740722453078,131.46,128.36,128.27,30.66]
[1740722453274,131.46,128.36,128.28,1.6043]
[1740722453774,82.8,128.42,128.33,6.2207]
[1740722453972,131.46,128.43,128.36,20.0]
[1740722454376,18.4438,128.48,128.36,20.0]
[1740722454884,37.902,128.48,128.36,20.0]
[1740722455083,101.44964886,128.47,128.33,16.8807]
[1740722455274,0.14216157,128.44,128.33,16.8807]
[1740722455473,18.79181043,128.42,128.33,16.8807]
[1740722455886,26.57901043,128.42,128.33,16.8807]
[1740722456266,26.43684886,128.42,128.33,16.8807]
[1740722456467,82.8,128.43,128.36,20.0]
[1740722456667,7.7831,128.49,128.37,1.5195]
[1740722456900,82.8,128.48,128.37,1.5195]
[1740722457286,82.8,128.48,128.37,21.5195]
[1740722457768,131.46,128.5,128.38,0.14216157]
[1740722457968,131.46,128.5,128.43,20.0]
[1740722458171,0.03,128.52,128.44,1.5331]
[1740722458372,214.24,128.57,128.49,6.5562]
[1740722458613,0.03,128.59,128.52,20.0]
[1740722458778,0.03,128.59,128.54,20.0]
[1740722459285,0.03,128.59,128.55,1.5998]
[1740722460275,0.03,128.64,128.6,20.0]
[1740722460495,0.03,128.64,128.59,10.54]
[1740722461190,7.8036,128.64,128.57,6.5601]
[1740722461795,0.14216157,128.62,128.57,6.5601]
[1740722462181,27.35406157,128.62,128.57,6.5601]
[1740722462376,27.2119,128.62,128.57,6.5601]
[1740722462583,0.14216157,128.6,128.57,6.5601]
[1740722462792,0.14216157,128.6,128.55,1.5998]
[1740722462998,131.44216157,128.6,128.51,16.9604]
[1740722463198,0.14216157,128.54,128.48,1.5805]
[1740722463388,18.64964886,128.53,128.48,1.5805]
[1740722463897,82.94216157,128.52,128.48,1.5805]
[1740722464094,19.4453,128.57,128.48,1.5805]
[1740722464282,0.14216157,128.55,128.48,1.5805]
[1740722464484,0.14216157,128.52,128.48,1.5805]
[1740722464695,18.64964886,128.5,128.45,6.1051]
[1740722464899,82.8,128.56,128.45,6.1051]
[1740722465201,10.76,128.59,128.45,6.1051]
[1740722465202,90.5772,128.58,128.48,20.0]
[1740722465377,90.5772,128.58,128.48,30.78]
[1740722465576,7.7754,128.61,128.49,1.72956157]
[1740722466190,19.4314,128.66,128.54,20.0]
[1740722466191,102.2314,128.66,128.54,20.0]
[1740722466395,7.8042,128.64,128.55,10.76]
[1740722466604,0.03,128.64,128.55,10.76]
[1740722468005,7.8038,128.64,128.52,218.1]
[1740722468194,0.14216157,128.61,128.54,10.76]
[1740722468393,82.8,128.6,128.54,10.76]
[1740722468596,18.64964886,128.59,128.51,6.0786]
[1740722468795,0.14216157,128.58,128.51,6.0786]
[1740722468998,18.79181043,128.56,128.51,6.0786]
[1740722469209,18.64964886,128.56,128.51,6.0786]
[1740722470195,82.8,128.57,128.51,6.0786]
[1740722470398,82.8,128.61,128.51,6.0786]
[1740722470593,18.79181043,128.6,128.51,6.0786]
[1740722470793,18.79181043,128.58,128.51,6.0786]
[1740722470989,0.14216157,128.55,128.46,6.2354]
[1740722471201,82.8,128.54,128.46,6.2354]
[1740722471404,82.8,128.56,128.46,6.2354]
[1740722471611,82.8,128.55,128.46,6.2354]
[1740722471808,82.8,128.56,128.49,21.5874]
[1740722472012,131.24,128.57,128.49,21.5874]
[1740722472215,131.24,128.57,128.49,32.4074]
[1740722473311,82.8,128.6,128.5,0.14216157]
[1740722473520,82.8,128.63,128.54,20.0]
[1740722473691,82.8,128.62,128.54,20.0]
[1740722473895,101.44964886,128.61,128.51,6.0086]
[1740722474207,18.64964886,128.59,128.51,6.0086]
[1740722474387,26.42634886,128.59,128.51,6.0086]
[1740722474592,18.64964886,128.59,128.51,6.0086]
[1740722474791,26.42624886,128.59,128.51,6.0086]
[1740722474986,0.14216157,128.58,128.51,6.0086]
[1740722475199,18.64964886,128.56,128.51,6.0086]
[1740722475593,82.8,128.57,128.51,6.0086]
[1740722476093,131.22,128.58,128.51,6.0086]
[1740722476094,82.8,128.56,128.51,6.0086]
[1740722476427,131.22,128.58,128.51,6.0086]
[1740722476728,82.8,128.62,128.54,20.0]
[1740722476924,82.8,128.61,128.54,20.0]
[1740722477491,7.8042,128.63,128.52,10.82]
[1740722477492,82.8,128.6,128.52,10.82]
[1740722477688,82.8,128.62,128.52,10.82]
[1740722478125,18.64964886,128.61,128.52,10.82]
[1740722478331,82.8,128.6,128.52,10.82]
[1740722478504,101.44964886,128.59,128.51,6.0086]
[1740722478705,0.14216157,128.58,128.51,6.0086]
[1740722479027,18.64964886,128.56,128.51,6.0086]
[1740722479224,18.64964886,128.54,128.51,6.0086]
[1740722479445,18.64964886,128.52,128.5,0.063]
[1740722479602,101.59181043,128.51,128.5,0.0001]
[1740722480117,18.79181043,128.51,128.5,0.0001]
[1740722480712,26.57321043,128.51,128.5,0.0001]
[1740722480919,26.57321043,128.51,128.43,1.6128]
[1740722480920,0.14216157,128.49,128.43,1.6128]
[1740722481616,0.14216157,128.49,128.41,6.2712]
[1740722482045,0.14216157,128.49,128.41,0.063]
[1740722482046,20.0,128.43,128.41,0.063]
[1740722482325,18.79181043,128.42,128.41,0.063]
[1740722482538,0.14216157,128.42,128.41,0.063]
[1740722482838,7.92906157,128.42,128.41,0.0001]
[1740722483009,7.92906157,128.42,128.36,6.0243]
[1740722483210,0.14216157,128.4,128.31,7.9321]
[1740722483823,7.7869,128.42,128.31,7.9321]
[1740722484024,0.14216157,128.43,128.31,7.9321]
[1740722484308,131.22,128.44,128.34,20.0]
[1740722484527,131.22,128.44,128.36,20.0]
[1740722484718,131.22,128.44,128.37,6.1263]
[1740722484913,131.22,128.44,128.38,1.6107]
[1740722485314,82.8,128.43,128.38,1.6107]
[1740722485829,131.22,128.44,128.38,1.6107]
[1740722486127,101.44964886,128.43,128.38,1.6107]
[1740722486504,82.8,128.43,128.38,1.6107]
[1740722488142,82.8,128.43,128.4,20.0]
[1740722488353,19.4484,128.55,128.4,20.0]
[1740722488550,131.28,128.53,128.42,20.0]
[1740722489239,139.0604,128.53,128.42,20.0]
[1740722489421,131.28,128.53,128.42,20.0]
[1740722490031,131.28,128.53,128.47,1.6167]
[1740722490229,82.8,128.58,128.5,20.0]
[1740722490444,131.3,128.6,128.5,20.0]
[1740722490634,131.3,128.6,128.51,6.4596]
[1740722490831,131.3,128.6,128.54,20.0]
[1740722491139,0.03,128.62,128.57,1.618]
[1740722493252,0.03,128.63,128.61,20.0]
[1740722493448,0.03,128.64,128.59,0.14216157]
[1740722493751,0.03,128.64,128.62,20.0]
[1740722493951,139.0269,128.76,128.62,20.0]
[1740722494257,18.64964886,128.72,128.62,20.0]
[1740722494554,0.14216157,128.71,128.59,10.78]
[1740722494754,18.64964886,128.7,128.59,10.78]
[1740722495054,90.71296157,128.69,128.58,6.103]
[1740722495269,0.14216157,128.67,128.58,6.103]
[1740722495629,101.44964886,128.68,128.58,6.103]
[1740722495838,7.7708,128.69,128.58,6.103]
[1740722496148,0.14216157,128.67,128.58,6.103]
[1740722497263,18.79181043,128.65,128.58,6.103]
[1740722497558,101.44964886,128.65,128.58,6.103]
[1740722497928,131.2,128.66,128.58,6.103]
[1740722498124,131.2,128.66,128.61,20.0]
[1740722498339,131.2,128.66,128.58,6.103]
[1740722498740,131.2,128.66,128.61,20.0]
[1740722499143,82.8,128.69,128.61,20.0]
[1740722499342,82.8,128.71,128.61,30.68]
[1740722499559,0.03,128.74,128.62,0.14216157]
[1740722499747,0.03,128.74,128.62,226.18816157]
[1740722499953,0.03,128.74,128.66,20.0]
[1740722500156,0.03,128.74,128.7,20.0]
[1740722500361,0.03,128.74,128.71,6.2928]
[1740722500560,82.8,128.81,128.73,1.6532]
[1740722500767,82.8,128.8,128.73,1.6532]
[1740722501073,82.8,128.8,128.74,20.0]
[1740722501474,131.18,128.83,128.74,20.0]
[1740722502866,82.8,128.82,128.73,1.6532]
[1740722503071,129.40790223,128.89,128.74,20.0]
[1740722503366,82.8,128.88,128.78,20.0]
[1740722504062,18.64964886,128.87,128.78,20.0]
[1740722504261,18.64964886,128.85,128.75,10.76]
[1740722504459,18.64964886,128.83,128.75,10.76]
[1740722504865,82.8,128.82,128.75,10.76]
[1740722505050,101.44964886,128.81,128.75,10.76]
[1740722505368,38.84930223,128.89,128.73,1.6532]
[1740722505369,18.64964886,128.79,128.73,1.6532]
[1740722505674,82.8,128.78,128.73,1.6532]
[1740722506168,18.64964886,128.76,128.73,1.6532]
[1740722506747,131.08,128.8,128.73,1.6532]
[1740722506946,131.08,128.8,128.74,20.0]
[1740722507249,82.8,128.83,128.75,20.0]
[1740722507854,18.64964886,128.82,128.75,20.0]
[1740722508170,7.7603,128.86,128.75,20.0]
[1740722508361,82.8,128.92,128.8,20.0]
[1740722508669,82.8,128.91,128.81,10.88]
[1740722508972,101.44964886,128.9,128.81,10.88]
[1740722509270,18.64964886,128.88,128.81,10.88]
[1740722509454,7.7567,128.92,128.81,10.88]
[1740722509649,82.8,128.91,128.81,10.88]
[1740722510045,18.64964886,128.9,128.81,10.88]
[1740722510957,0.14216157,128.89,128.77,6.0943]
[1740722511157,18.64964886,128.88,128.77,6.0943]
[1740722511371,18.79181043,128.85,128.77,6.0943]
[1740722511571,18.79181043,128.83,128.77,6.0943]
[1740722511867,18.79181043,128.81,128.77,6.0943]
[1740722512172,18.79181043,128.81,128.73,1.6532]
[1740722512173,18.64964886,128.79,128.73,1.6532]
[1740722512576,18.64964886,128.79,128.74,0.063]
[1740722513256,18.64964886,128.77,128.74,0.063]
[1740722513878,82.8,128.78,128.74,0.063]
[1740722514071,18.64964886,128.77,128.74,0.063]
[1740722514762,0.14216157,128.75,128.74,0.063]
[1740722515166,0.14216157,128.75,128.67,1.5883]
[1740722515557,18.64964886,128.76,128.67,1.5883]
[1740722515757,26.41624886,128.76,128.67,1.5883]
[1740722516282,18.64964886,128.76,128.69,20.0]
[1740722516573,18.584,128.8,128.69,30.82]
[1740722516772,18.64964886,128.79,128.69,30.82]
[1740722517165,0.14216157,128.78,128.69,10.82]
[1740722517763,19.4065,128.83,128.69,10.82]
[1740722517975,19.4065,128.83,128.69,30.82]
[1740722518171,18.64964886,128.82,128.69,30.82]
[1740722518369,45.81924886,128.82,128.69,30.82]
[1740722518566,45.81924886,128.82,128.72,20.0]
[1740722518771,0.14216157,128.81,128.72,20.0]
[1740722519079,18.64964886,128.8,128.72,20.0]
[1740722519590,7.7627,128.82,128.73,6.6647]
[1740722519775,101.44964886,128.83,128.73,6.6647]
[1740722519976,0.14216157,128.82,128.73,6.6647]
[1740722520184,0.14216157,128.8,128.73,6.6647]
[1740722520481,101.44964886,128.81,128.73,6.6647]
[1740722520791,0.14216157,128.8,128.73,6.6647]
[1740722521179,18.79181043,128.78,128.73,6.6647]
[1740722521481,82.8,128.82,128.73,6.6647]
[1740722521789,0.14216157,128.79,128.73,6.6647]
[1740722522017,18.79181043,128.77,128.68,6.1286]
[1740722522179,18.79181043,128.75,128.68,6.1286]
[1740722522568,0.14216157,128.72,128.68,6.1286]
[1740722522771,18.64964886,128.73,128.62,6.0157]
[1740722522772,18.79181043,128.7,128.62,6.0157]
[1740722522971,0.14216157,128.67,128.62,6.0157]
[1740722523186,18.79181043,128.65,128.61,1.5758]
[1740722523378,18.79181043,128.63,128.61,0.063]
[1740722523572,82.8,128.7,128.61,0.063]
[1740722523882,0.14216157,128.68,128.61,0.063]
[1740722524094,7.7712,128.69,128.61,0.063]
[1740722524270,7.7688,128.72,128.64,20.0]
[1740722524470,90.5688,128.72,128.65,1.5436]
[1740722524668,18.79181043,128.7,128.65,1.5436]
[1740722525087,0.14216157,128.68,128.61,0.063]
[1740722525387,82.8,128.71,128.61,0.063]
[1740722525582,138.7681,128.74,128.65,6.5639]
[1740722525890,7.7651,128.78,128.66,1.5776]
[1740722526204,82.8,128.77,128.66,1.5776]
[1740722526373,7.7651,128.78,128.68,0.063]
[1740722526692,0.14216157,128.76,128.68,0.063]
[1740722527073,18.79181043,128.76,128.68,0.063]
[1740722527289,18.79181043,128.74,128.68,0.063]
[1740722527487,0.14216157,128.71,128.68,0.063]
[1740722527688,18.64964886,128.69,128.68,0.063]
[1740722527895,27.1822,128.76,128.68,0.063]
[1740722528193,82.8,128.75,128.68,0.063]
[1740722528378,0.03,128.77,128.68,0.063]
[1740722528379,18.64964886,128.73,128.68,0.063]
[1740722528576,101.44964886,128.73,128.68,0.063]
[1740722528768,82.8,128.73,128.68,0.063]
[1740722528968,0.03,128.77,128.7,20.0]
[1740722529195,82.83,128.77,128.7,20.0]
[1740722529375,90.5958,128.77,128.7,20.0]
[1740722529581,90.5958,128.77,128.68,0.063]
[1740722530196,18.79181043,128.76,128.68,0.063]
[1740722530405,18.64964886,128.76,128.68,0.063]
[1740722530609,82.94216157,128.75,128.68,0.063]
[1740722530899,27.35236157,128.77,128.68,0.063]
[1740722530900,0.14216157,128.73,128.68,0.063]
[1740722531087,18.64964886,128.71,128.68,0.063]
[1740722531279,27.2102,128.77,128.68,0.063]
[1740722531483,82.8,128.76,128.68,0.063]
[1740722531804,18.64964886,128.75,128.68,0.063]
[1740722531984,26.41684886,128.75,128.68,0.063]
[1740722532297,0.14216157,128.72,128.68,0.063]
[1740722532512,82.8,128.73,128.68,0.063]
[1740722532676,82.8,128.76,128.68,20.063]
[1740722532989,18.64964886,128.75,128.68,31.143]
[1740722533388,18.64964886,128.75,128.68,11.143]
[1740722533792,18.64964886,128.75,128.68,31.143]
[1740722534100,0.14216157,128.72,128.68,0.063]
[1740722534395,90.5675,128.74,128.68,0.063]
[1740722534396,82.8,128.74,128.68,0.063]
[1740722534599,0.03,128.77,128.68,0.063]
[1740722534600,0.03,128.77,128.7,1.6563]
[1740722535091,101.44964886,128.76,128.7,1.6563]
[1740722535394,18.64964886,128.74,128.7,1.6563]
[1740722535597,18.64964886,128.72,128.7,1.6563]
[1740722535898,18.64964886,128.7,128.68,0.063]
[1740722536109,109.22024886,128.69,128.68,0.063]
[1740722536303,18.64964886,128.69,128.68,0.063]
[1740722536595,82.8,128.71,128.68,0.063]
[1740722536800,18.64964886,128.7,128.68,0.063]
[1740722537180,101.44964886,128.69,128.68,0.063]
[1740722537604,18.64964886,128.68,128.65,6.5639]
[1740722537893,18.64964886,128.66,128.65,6.5639]
[1740722538202,26.42204886,128.66,128.61,0.063]
[1740722538497,18.64964886,128.64,128.61,0.063]
[1740722538876,90.5701,128.7,128.61,0.063]
[1740722539079,82.8,128.69,128.63,20.0]
[1740722539280,82.8,128.74,128.63,31.08]
[1740722539591,82.8,128.74,128.67,20.0]
[1740722539790,82.8,128.73,128.64,6.2618]
[1740722539985,82.83,128.77,128.67,20.0]
[1740722540314,82.8,128.76,128.68,0.063]
[1740722540502,82.8,128.76,128.69,1.5963]
[1740722541201,18.64964886,128.75,128.69,1.5963]
[1740722541503,7.7959,128.77,128.69,1.5963]
[1740722541681,82.8,128.76,128.69,1.5963]
[1740722541877,0.03,128.77,128.73,20.0]
[1740722542083,0.03,128.82,128.73,20.0]
[1740722542906,0.03,128.82,128.74,0.14216157]
[1740722543221,0.03,128.82,128.78,20.0]
[1740722543388,0.03,128.82,128.75,11.04]
[1740722544099,7.7927,128.82,128.75,11.04]
[1740722544402,101.44964886,128.81,128.75,11.04]
[1740722545318,101.44964886,128.81,128.7,6.5415]
[1740722545319,0.14216157,128.78,128.7,6.5415]
[1740722545492,82.8,128.77,128.7,6.5415]
[1740722546005,18.64964886,128.76,128.7,6.5415]
[1740722546522,90.5927,128.82,128.73,20.0]
[1740722546887,18.64964886,128.81,128.73,20.0]
[1740722547512,0.03,128.82,128.73,20.0]
[1740722548206,131.06,128.86,128.79,1.5343]
[1740722548412,131.06,128.86,128.8,20.0]
[1740722548620,0.03,128.9,128.81,6.4588]
[1740722549293,26.43784886,128.9,128.81,6.4588]
[1740722550206,26.40874886,128.88,128.81,6.4588]
[1740722550718,0.14216157,128.87,128.81,6.4588]
[1740722550918,18.64964886,128.85,128.81,6.4588]
[1740722551097,82.8,128.89,128.84,20.0]
[1740722551303,0.03,128.9,128.84,20.0]
[1740722551507,0.03,128.9,128.84,31.02]
[1740722552221,82.8,128.94,128.84,31.02]
[1740722552222,7.7547,128.96,128.85,6.029]
[1740722552523,90.5532,128.98,128.88,20.0]
[1740722552722,82.8,128.97,128.88,20.0]
[1740722552917,130.96,129.0,128.89,20.0]
[1740722553219,0.03,128.99,128.94,6.0798]
[1740722553600,82.8,128.98,128.94,6.0798]
[1740722553802,18.64964886,128.97,128.89,6.0798]
[1740722554203,18.64964886,128.97,128.89,26.0798]
[1740722554404,26.40334886,128.97,128.89,26.0798]
[1740722554705,18.64964886,128.95,128.89,6.0798]
[1740722554911,18.64964886,128.93,128.89,6.0798]
[1740722556310,82.8,128.96,128.89,6.0798]
[1740722556506,18.64964886,128.96,128.89,6.0798]
[1740722558019,90.5532,128.98,128.89,6.0798]
[1740722558222,18.64964886,128.97,128.89,6.0798]
[1740722558416,18.64964886,128.97,128.92,20.0]
[1740722558727,0.03,128.99,128.92,20.0]
[1740722559323,0.03,128.99,128.93,1.6526]
[1740722559520,0.03,128.99,128.93,21.6526]
[1740722559919,0.03,128.99,128.93,1.6526]
[1740722561525,66.17202073,129.07,128.96,20.0]
[1740722561729,73.91992073,129.07,128.97,11.02]
[1740722562043,73.91992073,129.07,128.96,20.0]
[1740722562044,82.8,129.06,128.94,6.0375]
[1740722562211,82.8,129.06,128.87,221.91674576]
[1740722562212,18.79181043,129.01,128.89,6.2516]
[1740722562409,18.79181043,128.99,128.89,6.2516]
[1740722563145,18.79181043,128.99,128.92,20.0]
[1740722563146,18.64964886,128.99,128.92,20.0]
[1740722564227,18.64964886,128.99,128.93,11.02]
[1740722565422,18.67964886,128.99,128.93,11.02]
[1740722566143,66.17202073,129.07,128.97,20.0]
[1740722566457,66.17202073,129.07,129.02,1.6034]
[1740722566633,66.17202073,129.07,129.03,11.04]
[1740722567421,18.64964886,129.06,129.03,11.04]
[1740722567627,66.17202073,129.07,129.03,11.04]
[1740722568027,59.50542073,129.07,129.03,11.04]
[1740722568251,59.50542073,129.07,129.02,8.098]
[1740722569331,59.50542073,129.07,129.05,20.0]
[1740722569736,59.50542073,129.07,129.02,8.098]
[1740722570666,18.64964886,129.06,129.02,8.098]
[1740722572533,59.50542073,129.07,129.02,8.098]
[1740722574945,59.50542073,129.07,129.05,20.0]
[1740722576365,49.50562073,129.07,129.05,31.18]
[1740722576533,24.76532073,129.07,129.06,0.14216157]
[1740722576733,136.08669829,129.26,129.06,0.14216157]
[1740722576970,9.2634,129.22,129.07,1.62561873]
[1740722577139,18.79181043,129.21,129.07,11.2]
[1740722577339,18.79181043,129.19,129.07,11.2]
[1740722577546,0.14216157,129.14,129.07,11.2]
[1740722578363,0.14216157,129.14,129.03,11.22]
[1740722578543,18.79181043,129.12,129.03,11.22]
[1740722579934,20.40011043,129.12,129.03,11.22]
[1740722580171,20.40011043,129.12,129.02,0.063]
[1740722580172,82.8,129.11,129.02,0.063]
[1740722580335,101.59181043,129.1,129.02,0.063]
[1740722580535,26.53781043,129.1,129.02,0.063]
[1740722580967,1.6083,129.12,129.02,20.063]
[1740722581260,9.3532,129.12,129.02,20.063]
[1740722581752,1.6083,129.12,129.02,20.063]
[1740722581953,0.14216157,129.11,129.02,0.063]
[1740722582154,9.3531,129.12,129.02,0.063]
[1740722582357,0.14216157,129.11,129.02,0.063]
[1740722582550,0.14216157,129.09,129.02,0.063]
[1740722582744,7.7459,129.1,129.02,0.063]
[1740722582950,82.94216157,129.09,129.02,0.063]
[1740722583258,82.94216157,129.09,128.9,0.063]
[1740722583259,0.14216157,129.0,128.9,0.063]
[1740722583558,18.64964886,129.0,128.9,0.063]
[1740722583740,82.94216157,128.99,128.9,0.063]
[1740722583936,0.14216157,128.95,128.9,0.063]